Cogmind - Beta 13 @@@ ROGUE MODE // 2024.05.05 @ 10:30:45 Player: Anonymous_lightbulb Result: Self-destructed Performance ------------- Evolutions (1) 500 Regions Visited (5) 1000 Robots Destroyed (19) 95 Value Destroyed (430) 430 Prototype IDs (1) 20 Alien Tech Used (0) 0 Bonus (0) 0 TOTAL SCORE: 2045 Bonus ------- None Cogmind --------- Core Integrity 120/400 Matter 479/500 Energy 430/430 System Corruption 5% Temperature Cool (0) Movement Treading (160) Location -9/Exiles Parts ------- > --- POWER (2) -------- Ion Engine Cooled Ion Engine > --- PROPULSION (2) --- Improved Treads Improved Treads > --- UTILITY (3) ------ Large Storage Unit High-capacity Matter Pod > --- WEAPON (2) ------- Assault Rifle > --- INVENTORY (15) --- Light Treads Improved Treads Small Storage Unit Small Laser Rocket Launcher Peak State ------------ > --- POWER ------------ Ion Engine Cooled Ion Engine > --- PROPULSION ------- Improved Treads Improved Treads > --- UTILITY ---------- Large Storage Unit Improved Targeting Computer Light Armor Plating > --- WEAPON ----------- Assault Rifle Rocket Launcher > --- INVENTORY -------- Light Treads Improved Treads Improved Treads Small Storage Unit Improved Targeting Computer Small Laser Small Laser Rocket Launcher [Rating: 16] Favorites ----------- Power Ion Engine Engine Ion Engine Propulsion Improved Treads Treads Improved Treads Utility Improved Targeting Computer Storage Large Storage Unit Processor Improved Targeting Computer Protection Light Armor Plating Weapon Rocket Launcher Energy Gun Small Laser Ballistic Gun Assault Rifle Launcher Rocket Launcher Build | -11 -10 -10 -9 -9 -9 ------- Run | Yrd Mat Min Mat Min Exi Slots Evolved 2 | . . . 2 . . Power 1 | . . . 1 . . Propulsion . | . . . . . . Utility 1 | . . . 1 . . Weapon . | . . . . . . Parts Attached 26 | 4 9 2 2 1 8 Power 3 | 1 1 . 1 . . Engine 3 | 1 1 . 1 . . Core . | . . . . . . Reactor . | . . . . . . Propulsion 5 | 2 2 . . . 1 Treads 5 | 2 2 . . . 1 Leg . | . . . . . . Wheel . | . . . . . . Hover . | . . . . . . Flight . | . . . . . . Utility 7 | 1 1 1 1 . 3 Device . | . . . . . . Storage 3 | 1 . 1 . . 1 Processor 2 | . 1 . . . 1 Hackware . | . . . . . . Protection 2 | . . . 1 . 1 Artifact . | . . . . . . Weapon 11 | . 5 1 . 1 4 Energy Gun 3 | . 2 . . 1 . Energy Cannon . | . . . . . . Ballistic Gun 3 | . 1 1 . . 1 Ballistic Cannon . | . . . . . . Launcher 5 | . 2 . . . 3 Special Weapon . | . . . . . . Impact Weapon . | . . . . . . Slashing Weapon . | . . . . . . Piercing Weapon . | . . . . . . Special Melee Weapon . | . . . . . . Unidentified Prototypes 1 | . . . 1 . . Parts Lost 6 | . . . . 4 2 Power . | . . . . . . Propulsion 1 | . . . . 1 . Utility 3 | . . . . 2 1 Weapon 2 | . . . . 1 1 Highest Loss Streak 4 | . . . . 4 2 To Critical Strikes . | . . . . . . Average Slot Usage (%) 92 | . 95 100 92 83 84 Engine 17 | . 14 14 17 22 22 Treads 24 | . 28 28 22 22 22 Storage 13 | . 14 14 11 11 14 Processor 9 | . 13 14 11 10 . Protection 4 | . . . 11 11 3 Energy Gun 2 | . 7 . . 7 . Ballistic Gun 6 | . 2 3 9 . 11 Launcher 13 | . 14 25 9 . 10 Naked Turns . | . . . . . . Heaviest Build 46 | 10 18 31 42 37 46 Greatest Support 46 | 40 46 46 46 46 46 Greatest Overweight (x) 1 | 1 . . . 1 . Average Overweight (x) . | . . . . . . Largest Inventory Capacity 15 | 8 8 15 15 15 15 Average Capacity 11 | 7 8 8 15 15 15 Most Carried 11 | 8 8 9 11 10 9 Average Carried 7 | 6 7 8 8 10 6 Final Capacity 15 | 8 8 15 15 15 15 Final Carried 11 | 8 8 9 11 10 5 Class Distribution -------------------- 100% | Mutant Dominant Class ---------------- Mutant | -10/Materials Mutant | -10/Mines Mutant | -9/Materials Mutant | -9/Mines Mutant | -9/Exiles Resources | -11 -10 -10 -9 -9 -9 ----------- Run | Yrd Mat Min Mat Min Exi Matter Collected 742 | 225 63 47 77 . 330 Remotely . | . . . . . . Salvage Created 286 | . 114 41 131 . . Parts 40 | . 19 6 15 . . Haulers Intercepted 1 | . . . 1 . . Recyclers Shooed 1 | . . . 1 . . Parts Field Recycled . | . . . . . . Retrieved Matter . | . . . . . . Parts Self-Destructed . | . . . . . . Prevented . | . . . . . . Kills | -11 -10 -10 -9 -9 -9 ------- Run | Yrd Mat Min Mat Min Exi Combat Hostiles Destroyed 10 | . 2 5 3 . . AOE 10 | . 2 5 3 . . Classes Destroyed 6 | . 3 1 2 . . Builder 5 | . 2 . 3 . . Hauler 1 | . . . 1 . . Watcher 3 | . 2 . 1 . . Swarmer 3 | . . 3 . . . Grunt 6 | . 2 2 2 . . Sentry 1 | . . . 1 . . Best Kill Streak 5 | . 5 3 5 . . Combat Bots Only 3 | . 2 3 2 . . Max Kills in Single Turn 3 | . 3 3 2 . . Gunslinging . | . . . . . . Exploded 3 | . 2 3 1 . . Melee . | . . . . . . Uniques/NPCs Destroyed . | . . . . . . Combat | -11 -10 -10 -9 -9 -9 -------- Run | Yrd Mat Min Mat Min Exi Hostile Shots Fired 90 | . 1 7 38 30 14 Missed 31 | . . 1 20 9 1 Damage Taken 1379 | . 101 99 210 443 526 Core 306 | . 16 10 54 61 165 Absorbed by Shields . | . . . . . . Core Remaining (%) 94 | 100 . 89 . . . Volleys Fired 25 | . 7 4 14 . . Largest 2 | . 2 2 2 . . Hottest 66 | . 66 66 53 . . Shots Fired 48 | . 14 8 25 . 1 Gun 20 | . 6 . 14 . . Cannon . | . . . . . . Launcher 28 | . 8 8 11 . 1 Special . | . . . . . . Kinetic 17 | . 3 . 14 . . Thermal 3 | . 3 . . . . Explosive 28 | . 8 8 11 . 1 Electromagnetic . | . . . . . . Robot Hit Streak 6 | . 4 1 6 . . Robot Miss Streak 3 | . 3 1 3 . . Penetration Max . | . . . . . . Secondary Targets . | . . . . . . Shots Hit Robots 24 | . 6 2 16 . . Core Hits 33 | . 8 6 19 . . Critical Kills . | . . . . . . Critical Parts Destroyed . | . . . . . . Critical Strikes . | . . . . . . Melee Attacks . | . . . . . . Impact . | . . . . . . Slashing . | . . . . . . Piercing . | . . . . . . Sneak Attacks . | . . . . . . Combat Hostiles . | . . . . . . Follow-up Attacks . | . . . . . . Damage Inflicted 1447 | . 422 377 644 4 . Guns 135 | . 26 . 109 . . Cannons . | . . . . . . Explosions 1284 | . 383 371 530 . . Melee . | . . . . . . Ramming 28 | . 13 6 5 4 . Kinetic 135 | . 26 . 109 . . Thermal . | . . . . . . Explosive 1284 | . 383 371 530 . . Electromagnetic . | . . . . . . Impact . | . . . . . . Slashing . | . . . . . . Piercing . | . . . . . . Highest Corruption 5 | . 1 1 . 5 5 Average Corruption 3 | . 1 1 . 5 5 Corruption Purged . | . . . . . . Corruption Blocked . | . . . . . . Effects 16 | . . 4 . . 12 Message Errors 3 | . . 1 . . 2 Matter Fused 2 | . . 1 . . 1 Heat Flow Errors 4 | . . 1 . . 3 Data Loss (minor) 3 | . . . . . 3 Data Loss (major) 3 | . . 1 . . 2 Misfires 1 | . . . . . 1 Overload Shots . | . . . . . . Overflow Damage . | . . . . . . Projectiles . | . . . . . . Explosions . | . . . . . . Melee . | . . . . . . Knockbacks . | . . . . . . Impact . | . . . . . . Kinetic . | . . . . . . Secondary . | . . . . . . Self-Inflicted Damage 134 | . 90 40 4 . . Shots 4 | . 2 1 1 . . Rammed 11 | . 3 3 3 2 . Targets Rammed 11 | . 3 3 3 2 . Kicked . | . . . . . . Crushed . | . . . . . . Highest Temperature 231 | . 18 168 36 . 231 Average Temperature 57 | . 7 76 15 . 96 Received Heat Transfer 120 | . 6 9 105 . . Siege Activations . | . . . . . . Robots Corrupted . | . . . . . . Combat Hostiles . | . . . . . . Parts Fried . | . . . . . . Impact Corruptions . | . . . . . . Robots Melted . | . . . . . . Combat Hostiles . | . . . . . . Parts Melted . | . . . . . . Heat Transferred . | . . . . . . Parts Sabotaged . | . . . . . . Parts Stolen . | . . . . . . Parts Stripped . | . . . . . . Power Chain Reactions . | . . . . . . Alert | -11 -10 -10 -9 -9 -9 ------- Run | Yrd Mat Min Mat Min Exi Peak Influence 330 | . 131 205 330 128 . Initial 128 | . . 12 79 128 . Average 115 | . 52 160 182 123 . Maximum Alert Level 1 | . . 1 1 . . Low Security (%) 76 | 100 100 43 59 100 . Level 1 23 | . . 56 40 . . Level 2 . | . . . . . . Level 3 . | . . . . . . Level 4 . | . . . . . . Level 5 . | . . . . . . High Security . | . . . . . . Max Security . | . . . . . . Squads Dispatched 2 | . 1 . 1 . . Investigation 1 | . 1 . . . . Extermination . | . . . . . . Reinforcement 1 | . . . 1 . . Assault . | . . . . . . Garrison . | . . . . . . Intercept . | . . . . . . Searches Triggered . | . . . . . . Construction Impeded 1 | . . . 1 . . Haulers Reinforced . | . . . . . . Active Scanning Responses . | . . . . . . Cargo Convoy Interrupts . | . . . . . . Stealth | -11 -10 -10 -9 -9 -9 --------- Run | Yrd Mat Min Mat Min Exi Distress Signals . | . . . . . . Communications Jammed . | . . . . . . Distress Signals . | . . . . . . Times Spotted 35 | . 4 5 7 6 13 Peak Tracking Total 12 | . 2 3 3 7 12 Tactical Retreats 2 | . . . . . 2 Traps | -11 -10 -10 -9 -9 -9 ------- Run | Yrd Mat Min Mat Min Exi Traps Triggered 2 | . 2 . . . . Indirectly . | . . . . . . Trap Hack Attempts . | . . . . . . Triggered . | . . . . . . Disarmed . | . . . . . . Reprogrammed . | . . . . . . Reused . | . . . . . . Traps Extracted . | . . . . . . Installed . | . . . . . . Triggered . | . . . . . . Machines | -11 -10 -10 -9 -9 -9 ---------- Run | Yrd Mat Min Mat Min Exi Machines Disabled 7 | . 2 1 3 . 1 Max in Single Turn 2 | . 2 1 1 . 1 Machines Repaired . | . . . . . . Machines Dismantled . | . . . . . . Machines Sabotaged . | . . . . . . Overloaded Fab Kills . | . . . . . . Hacking | -11 -10 -10 -9 -9 -9 --------- Run | Yrd Mat Min Mat Min Exi Machines Accessed . | . . . . . . Terminals . | . . . . . . Fabricators . | . . . . . . Repair Stations . | . . . . . . Recycling Units . | . . . . . . Scanalyzers . | . . . . . . Garrison Access . | . . . . . . Total Hacks . | . . . . . . Successful . | . . . . . . Failed . | . . . . . . Catastrophic . | . . . . . . Database Lockouts . | . . . . . . Manual . | . . . . . . Terminals . | . . . . . . Fabricators . | . . . . . . Repair Stations . | . . . . . . Recycling Units . | . . . . . . Scanalyzers . | . . . . . . Garrison Access . | . . . . . . Terminal Hacks . | . . . . . . Fabricator Hacks . | . . . . . . Repair Station Hacks . | . . . . . . Recycling Unit Hacks . | . . . . . . Scanalyzer . | . . . . . . Garrison Access Hacks . | . . . . . . Unauthorized Hacks . | . . . . . . Terminals . | . . . . . . Fabricators . | . . . . . . Repair Stations . | . . . . . . Recycling Units . | . . . . . . Scanalyzers . | . . . . . . Garrison Access . | . . . . . . Data Cores Recovered . | . . . . . . Used . | . . . . . . Hacking Detections . | . . . . . . Full Trace Events . | . . . . . . Feedback Events . | . . . . . . Feedback Blocked . | . . . . . . Robot Schematics Acquired . | . . . . . . Robots Built . | . . . . . . Authchips . | . . . . . . Time . | . . . . . . Total Robot Build Rating . | . . . . . . Part Schematics Acquired . | . . . . . . Parts Built . | . . . . . . Authchips . | . . . . . . Time . | . . . . . . Total Part Build Rating . | . . . . . . Parts Repaired . | . . . . . . Time . | . . . . . . Parts Recycled . | . . . . . . Recycled Matter . | . . . . . . Retrieved Matter . | . . . . . . Retrieved Components . | . . . . . . Parts Scanalyzed . | . . . . . . Part Schematics Acquired . | . . . . . . Parts Damaged . | . . . . . . Bothacking | -11 -10 -10 -9 -9 -9 ------------ Run | Yrd Mat Min Mat Min Exi Used RIF Installer . | . . . . . . Robots Hacked . | . . . . . . Non-combat . | . . . . . . Combat . | . . . . . . Robot Hacks Applied . | . . . . . . Relay Couplers Released . | . . . . . . Fabnet Peak Effective % . | . . . . . . Robots Rewired . | . . . . . . Allies Hacked . | . . . . . . Hacks Repelled . | . . . . . . Allies | -11 -10 -10 -9 -9 -9 -------- Run | Yrd Mat Min Mat Min Exi Total Allies . | . . . . . . Largest Group . | . . . . . . Highest-Rated Group . | . . . . . . Highest-Rated Ally . | . . . . . . Total Orders . | . . . . . . Ally Attacks . | . . . . . . Total Damage . | . . . . . . Kills . | . . . . . . Allies Corrupted . | . . . . . . Allies Melted . | . . . . . . Intel | -11 -10 -10 -9 -9 -9 ------- Run | Yrd Mat Min Mat Min Exi Robot Analysis Total . | . . . . . . Derelict Logs Recovered . | . . . . . . Drone Launches . | . . . . . . Drone Recoveries . | . . . . . . Exploration | -11 -10 -10 -9 -9 -9 ------------- Run | Yrd Mat Min Mat Min Exi Turns Passed 1603 | 78 440 276 353 104 352 Spaces Moved 918 | 46 245 160 191 63 213 Core 13 | 13 . . . . . Treads 905 | 33 245 160 191 63 213 Legs . | . . . . . . Wheels . | . . . . . . Hover . | . . . . . . Flight . | . . . . . . Fastest Speed 50 | 50 160 160 160 160 160 Average Speed 158 | 137 160 160 160 161 160 Slowest Speed 240 | 160 160 160 160 240 160 Overloaded Moves . | . . . . . . Propulsion Burnouts . | . . . . . . Robots Hopped . | . . . . . . Cave-ins Triggered . | . . . . . . Exploration Rate (%) 26 | 4 41 37 22 8 47 Regions Visited 5 Branch Regions 3 Pre-discovered Areas . | . . . . . . Known Exits Taken . | . . . . . . Unknown Exits Taken 5 | 1 1 1 1 1 . Scrap Searched 1 | . . 1 . . . Spaces Dug 17 | . 17 . . . . Terrain Destroyed 235 | . 95 60 73 . 7 Melee . | . . . . . . Projectile . | . . . . . . AOE 235 | . 95 60 73 . 7 Terrain Rammed . | . . . . . . Walls Destroyed . | . . . . . . Machines Disabled . | . . . . . . Actions | -11 -10 -10 -9 -9 -9 --------- Run | Yrd Mat Min Mat Min Exi Total 1011 | 61 279 170 213 65 223 Wait . | . . . . . . Move 913 | 45 244 159 190 62 213 Hop . | . . . . . . Pick Up 24 | 12 8 1 2 . 1 Fast Attach 1 | . 1 . . . . Attach 15 | 4 2 . 2 1 6 Detach 3 | . . . 2 . 1 Swap 10 | . 6 2 . . 2 Drop 9 | . 8 1 . . . Fire 25 | . 7 4 14 . . Melee . | . . . . . . Ram . | . . . . . . Kick . | . . . . . . Crush 11 | . 3 3 3 2 . Escape Stasis . | . . . . . . Rewire . | . . . . . . Trap . | . . . . . . Miscellaneous . | . . . . . . Route ------- -11/Scrapyard -10/Materials -10/Mines -9/Materials -9/Mines -9/Exiles (discovered 1 exit: [*Min]) History --------- Turn | Location | Event 10 | -11/Scrapyard | Discovered new exit (range 14) 79 | -11/Scrapyard | Entered Materials 311 | -10/Materials | Build established: Mutant 423 | -10/Materials | Discovered new exit (range 8) 519 | -10/Materials | Entered Mines 783 | -10/Mines | Discovered new exit (range 5) 795 | -10/Mines | Entered Materials 795 | -9/Materials | Evolved 2 slots: Power x1, Utility x1 1126 | -9/Materials | Discovered new exit (range 12) 1148 | -9/Materials | Entered Mines 1195 | -9/Mines | Assembled infested the area 1242 | -9/Mines | Discovered new exit (range 5) 1252 | -9/Mines | Entered Exiles 1282 | -9/Exiles | Lost 4 parts (1n2u1w) 1305 | -9/Exiles | Discovered new exit (range 14) 1366 | -9/Exiles | Met 8R-AWN 1399 | -9/Exiles | Met EX-HEX 1534 | -9/Exiles | Met EX-DEC 1583 | -9/Exiles | Attacked by the Exiles 1603 | -9/Exiles | Core integrity fell below 50% 1604 | -9/Exiles | Self-destructed Last Messages --------------- chain! EX-DEC: "Oops, I hope HEX didn't hear that..." System corrupted: Component data lost. Connecting with EX-Message Board... Current location identified: Exiles Connecting with EX-Message Board... System corrupted: FCS attempts to trigger Rocket Launcher. System corrupted: Rocket Launcher misfires. [Achievement: Maybe Next Time I'll Detach My Launcher] Machine disabled. EXILES: Hostile robot within lab perimeter. Defensive protocols time, folks! EX-DEC deploys DAS Turret. Rocket Launcher destroyed. EX-BIN: "I just want to science!" Lgt. Armor Plating destroyed. System corrupted: Substantial component data lost. Map ----- +----------------------------------------------------+ | ?????????????????????????????????????????????????? | | ?????????????????????????????????????????????????? | | ?????????????????????????????????????????????????? | | ?????????????????????????????????????????????????? | | ?????????????????????????????????????????????????? | | ?????????????????????????????????????????????????? | | ?????????????????????????????????????????????????? | | ?????????????????????????????????????????????????? | | ?????????????????????????????????????????????????? | | ?????????????????????????????????????????????????? | | ?????????????????????????????????????????????????? | | ???????????????????????????????""#???????????????? | | ?????????????????????????????? #???????????????? | | ????????? ??????????????????? ????????????????? | | ????????? ????????????????" "#???????????????? | | ???????? ??????????????? ""#???????????????? | | ???????? #?????????????" ""????????????????? | | ?????????? ???????????? ####??????????????? | | ??????????"" ######???## # #?????#????????? | | ??????????#" """#####X ##"""""""??????? | | ??????????#" % """ " "" ?????? | | ????????????# % """ " ???? | | ????????????## " ?? | | ?????????????### a a | | ???????????????### aa a | | ?????????????????## @ | | ??????????????????## a | | ???????????????????##" | | ????????????????????#""" """????? | | ???????????????????##" ##??????? | | ???????????????????#"" ""##????????#" | | ???????????????????#""" """##??????????# | | ???????????????????""" """##???????????# | | ???????????????????""" ""#???????????## | | ???????????????????"" ########??####" | | ???????????????????""" ## ####""" | | ???????????????????"" t """" | | ???????????????????#"" | | ???????????????????#"""" | | ????????????????????# | | ????????????????????#" " "" | | ????????????????????#"""" ""## ##"" | | ????????????????????#"" ""#### #### | | ????????????????????#" """"##??# #??? | | ????????????????????#""" """#??## #### | | ????????????????????## ""##??#! "!# | | ?????????????????????#"" """##???#" !# | | ?????????????????????##""" ##????#" "# | | ??????????????????????##"""" ##?????#!!"" "# | | ????????????????????????## #??????######## | +----------------------------------------------------+ Best States ------------- Heat Dissipation 28 Energy Generation 19 Energy Capacity 430 Matter Stores 500 Matter Capacity 500 Sight Range 16 Terrain Scan Density 10 Armor Coverage 150 Evasion (%) 40 Targeting Accuracy 6 Recoil Reduction 2 Item Schematics ----------------- None Robot Schematics ------------------ None Fabricated ------------ Nothing Alien Tech Used ----------------- None Achievements -------------- I Survived The Infestation Maybe Next Time I'll Detach My Launcher Remodeling Challenges ------------ None Game ------ Seed SiegeDiametricGreatsword Manual? 0 Play Time 00:18:52 Cumulative 2.7 hours Start 2024.05.05 @ 10:10:35 End 2024.05.05 @ 10:30:45 Sessions 1 Manual Loads 0 Difficulty Rogue Special Mode None Game No. 12 Rogue 12 Adventurer 0 Explorer 0 Win Type - Total 0 Types 0/0/0/0/0/0/0/0/0 Lore% 3 Gallery% 7 Achievement% 7 Wizard Run 0 Options --------- Layout 1 ASCII 0 Keyboard 0 Movement Arrows Keybinds 0 Fullscreen 1 Font 24/Smallcaps Map View 50x40 Zoom Use 0% Tactical HUD 0 Map Filters NONE Filters NONE Steam 1 RUN: 0af4aaf0-5233-4216-8d43-ba98e8563656